[Event "*** Titled Tuesday Blitz"]
[Site "Chess.com"]
[Date "2021.02.02"]
[Round "10"]
[White "SaraciNderim"]
[Black "esapunov"]
[Result "1/2-1/2"]
[WhiteElo "2813"]
[BlackElo "2632"]
[TimeControl "180+1"]
[EndTime "11:58:48 PST"]
[Termination "Game drawn - timeout vs insufficient material"]

1. d4 {[%clk 0:03:00.9]} 1... Nf6 {[%clk 0:02:59.5]} 2. Nf3 {[%clk 0:02:56.3]}
2... g6 {[%clk 0:02:59.8]} 3. Bg5 {[%clk 0:02:54.5]} 3... Bg7 {[%clk 0:02:59.3]}
4. e3 {[%clk 0:02:54.6]} 4... O-O {[%clk 0:02:58.3]} 5. Nbd2 {[%clk 0:02:53.6]}
5... d5 {[%clk 0:02:58]} 6. c4 {[%clk 0:02:50.9]} 6... c5 {[%clk 0:02:56.7]} 7.
cxd5 {[%clk 0:02:49.8]} 7... cxd4 {[%clk 0:02:43.7]} 8. exd4 {[%clk 0:02:48.2]}
8... Nxd5 {[%clk 0:02:40.3]} 9. Bc4 {[%clk 0:02:42.6]} 9... Nc6 {[%clk
0:02:40.3]} 10. O-O {[%clk 0:02:40.9]} 10... Bf5 {[%clk 0:02:38.8]} 11. Re1
{[%clk 0:02:39.4]} 11... Rc8 {[%clk 0:02:35.7]} 12. Nb3 {[%clk 0:02:33.7]} 12...
Ncb4 {[%clk 0:02:28.5]} 13. Bxd5 {[%clk 0:02:24.5]} 13... Nxd5 {[%clk
0:02:27.4]} 14. Rc1 {[%clk 0:02:23.1]} 14... Qd6 {[%clk 0:02:23.8]} 15. Qe2
{[%clk 0:02:16.3]} 15... Rc7 {[%clk 0:01:58.4]} 16. Rxc7 {[%clk 0:02:12.8]}
16... Qxc7 {[%clk 0:01:58.5]} 17. Rc1 {[%clk 0:02:12.4]} 17... Qd6 {[%clk
0:01:56.4]} 18. Bh4 {[%clk 0:02:08]} 18... b6 {[%clk 0:01:35.1]} 19. Bg3 {[%clk
0:02:06.7]} 19... Qb4 {[%clk 0:01:32.2]} 20. Be5 {[%clk 0:02:01.5]} 20... f6
{[%clk 0:01:26.5]} 21. Bg3 {[%clk 0:02:00.3]} 21... Qa4 {[%clk 0:01:24.4]} 22.
Qc4 {[%clk 0:01:01.4]} 22... Qxc4 {[%clk 0:01:20.5]} 23. Rxc4 {[%clk 0:01:02.3]}
23... g5 {[%clk 0:01:09.7]} 24. Nfd2 {[%clk 0:01:00.4]} 24... Kf7 {[%clk
0:01:03.8]} 25. a4 {[%clk 0:00:51.9]} 25... Rc8 {[%clk 0:01:02.7]} 26. Rxc8
{[%clk 0:00:50.2]} 26... Bxc8 {[%clk 0:01:02.6]} 27. Bb8 {[%clk 0:00:49.3]}
27... a5 {[%clk 0:01:00.1]} 28. Ba7 {[%clk 0:00:48.2]} 28... Ba6 {[%clk
0:00:40.7]} 29. Nc1 {[%clk 0:00:44.3]} 29... Ke6 {[%clk 0:00:29]} 30. Ne4 {[%clk
0:00:40.4]} 30... g4 {[%clk 0:00:20.5]} 31. Nc3 {[%clk 0:00:39.8]} 31... Bh6
{[%clk 0:00:20.7]} 32. N1a2 {[%clk 0:00:36.5]} 32... Bc4 {[%clk 0:00:20.1]} 33.
Nxd5 {[%clk 0:00:33.9]} 33... Kxd5 {[%clk 0:00:20.4]} 34. Nc3+ {[%clk
0:00:33.9]} 34... Kxd4 {[%clk 0:00:20.7]} 35. Bxb6+ {[%clk 0:00:34.2]} 35... Kd3
{[%clk 0:00:20.9]} 36. Bxa5 {[%clk 0:00:34.3]} 36... Bb3 {[%clk 0:00:19.6]} 37.
Bb4 {[%clk 0:00:33.7]} 37... e5 {[%clk 0:00:19.4]} 38. a5 {[%clk 0:00:33.9]}
38... Bc4 {[%clk 0:00:19.6]} 39. Ba3 {[%clk 0:00:33.5]} 39... Bc1 {[%clk
0:00:17.8]} 40. Na4 {[%clk 0:00:33.4]} 40... Bb5 {[%clk 0:00:16.4]} 41. Nc5+
{[%clk 0:00:33.8]} 41... Kc4 {[%clk 0:00:16.4]} 42. a6 {[%clk 0:00:34.7]} 42...
Bc6 {[%clk 0:00:16.7]} 43. Nb7 {[%clk 0:00:32.5]} 43... Kb5 {[%clk 0:00:16]} 44.
Nd8 {[%clk 0:00:32.5]} 44... Bd5 {[%clk 0:00:15.4]} 45. a7 {[%clk 0:00:32.3]}
45... Ka6 {[%clk 0:00:15.1]} 46. Be7 {[%clk 0:00:29.9]} 46... f5 {[%clk
0:00:14.3]} 47. b4 {[%clk 0:00:29.4]} 47... Kxa7 {[%clk 0:00:13.7]} 48. Bd6
{[%clk 0:00:27.8]} 48... Kb6 {[%clk 0:00:12.9]} 49. Bxe5 {[%clk 0:00:27.3]}
49... Bg5 {[%clk 0:00:12.3]} 50. Bd4+ {[%clk 0:00:21]} 50... Kb5 {[%clk
0:00:12.6]} 51. h3 {[%clk 0:00:17.2]} 51... h5 {[%clk 0:00:12.1]} 52. hxg4
{[%clk 0:00:17.5]} 52... hxg4 {[%clk 0:00:12.5]} 53. Kh2 {[%clk 0:00:17.8]}
53... Bxd8 {[%clk 0:00:11.8]} 54. Kg3 {[%clk 0:00:18.2]} 54... Kc4 {[%clk
0:00:11.8]} 55. Be5 {[%clk 0:00:17.8]} 55... Bg5 {[%clk 0:00:10.7]} 56. f3
{[%clk 0:00:17.5]} 56... gxf3 {[%clk 0:00:11.1]} 57. gxf3 {[%clk 0:00:18.4]}
57... Kxb4 {[%clk 0:00:11]} 58. f4 {[%clk 0:00:13.5]} 58... Be7 {[%clk
0:00:10.9]} 59. Bc7 {[%clk 0:00:13.2]} 59... Kc4 {[%clk 0:00:10.9]} 60. Be5
{[%clk 0:00:13.3]} 60... Kd3 {[%clk 0:00:11.1]} 61. Kf2 {[%clk 0:00:12.1]} 61...
Ke4 {[%clk 0:00:10.3]} 62. Kg3 {[%clk 0:00:12.3]} 62... Bb4 {[%clk 0:00:10.4]}
63. Kh4 {[%clk 0:00:11.4]} 63... Be7+ {[%clk 0:00:09.9]} 64. Kh5 {[%clk
0:00:10.7]} 64... Bf7+ {[%clk 0:00:08.3]} 65. Kh6 {[%clk 0:00:11]} 65... Bh4
{[%clk 0:00:08]} 66. Kg7 {[%clk 0:00:11]} 66... Bd5 {[%clk 0:00:07.5]} 67. Kg6
{[%clk 0:00:11.2]} 67... Bc6 {[%clk 0:00:06.8]} 68. Bd6 {[%clk 0:00:10.3]} 68...
Bf2 {[%clk 0:00:07.1]} 69. Kg5 {[%clk 0:00:10.5]} 69... Bd7 {[%clk 0:00:07]} 70.
Bc7 {[%clk 0:00:10.8]} 70... Kf3 {[%clk 0:00:06.7]} 71. Bb8 {[%clk 0:00:10.9]}
71... Kg2 {[%clk 0:00:06.8]} 72. Be5 {[%clk 0:00:11.2]} 72... Kh3 {[%clk
0:00:07.2]} 73. Bd6 {[%clk 0:00:11.5]} 73... Bh4+ {[%clk 0:00:07]} 74. Kh5
{[%clk 0:00:11.7]} 74... Be8+ {[%clk 0:00:05.8]} 75. Kh6 {[%clk 0:00:12]} 75...
Kg4 {[%clk 0:00:06.4]} 76. Kg7 {[%clk 0:00:10.8]} 76... Bg3 {[%clk 0:00:06.3]}
77. Kf8 {[%clk 0:00:11.3]} 77... Bb5 {[%clk 0:00:06.2]} 78. Ke7 {[%clk
0:00:10.9]} 78... Bxf4 {[%clk 0:00:06.7]} 79. Bc5 {[%clk 0:00:11.2]} 79... Be5
{[%clk 0:00:06.7]} 80. Ke6 {[%clk 0:00:11.4]} 80... Bc3 {[%clk 0:00:06.7]} 81.
Bd6 {[%clk 0:00:11.4]} 81... f4 {[%clk 0:00:06.7]} 82. Bxf4 {[%clk 0:00:11.6]}
82... Kxf4 {[%clk 0:00:07.1]} 83. Kd5 {[%clk 0:00:12.5]} 83... Bd3 {[%clk
0:00:05.6]} 84. Kc5 {[%clk 0:00:12.4]} 84... Ke5 {[%clk 0:00:05.6]} 85. Kc6
{[%clk 0:00:12.3]} 85... Bd4 {[%clk 0:00:04.7]} 86. Kd7 {[%clk 0:00:12]} 86...
Bc4 {[%clk 0:00:03.7]} 87. Ke7 {[%clk 0:00:10.7]} 87... Bd5 {[%clk 0:00:02.2]}
88. Kd7 {[%clk 0:00:10.7]} 88... Bc5 {[%clk 0:00:02.2]} 89. Kc7 {[%clk
0:00:10.9]} 89... Ke6 {[%clk 0:00:02.3]} 90. Kc8 {[%clk 0:00:11.4]} 90... Ke7
{[%clk 0:00:01.8]} 91. Kc7 {[%clk 0:00:11.6]} 1/2-1/2

[Event "*** Titled Tuesday Blitz"]
[Site "Chess.com"]
[Date "2021.02.02"]
[Round "10"]
[White "JAAC2002"]
[Black "MaevskiyNikolay"]
[Result "0-1"]
[WhiteElo "2498"]
[BlackElo "2584"]
[TimeControl "180+1"]
[EndTime "11:59:02 PST"]
[Termination "MaevskiyNikolay won on time"]

1. e4 {[%clk 0:02:59.9]} 1... c5 {[%clk 0:02:59.1]} 2. Nf3 {[%clk 0:03:00]} 2...
Nf6 {[%clk 0:02:59.4]} 3. e5 {[%clk 0:02:58.2]} 3... Nd5 {[%clk 0:02:59.2]} 4.
g3 {[%clk 0:02:58.1]} 4... d6 {[%clk 0:02:58]} 5. Bg2 {[%clk 0:02:58.3]} 5...
Nc6 {[%clk 0:02:57.6]} 6. exd6 {[%clk 0:02:57.4]} 6... Qxd6 {[%clk 0:02:57.4]}
7. O-O {[%clk 0:02:57.6]} 7... Bg4 {[%clk 0:02:57.3]} 8. h3 {[%clk 0:02:56.6]}
8... Bh5 {[%clk 0:02:56.5]} 9. c4 {[%clk 0:02:51.1]} 9... Ndb4 {[%clk
0:02:52.1]} 10. Nc3 {[%clk 0:02:48.5]} 10... e6 {[%clk 0:02:44.3]} 11. d4 {[%clk
0:02:28.2]} 11... cxd4 {[%clk 0:02:37.9]} 12. Nb5 {[%clk 0:02:22.6]} 12... Qd8
{[%clk 0:02:34.7]} 13. g4 {[%clk 0:02:18]} 13... Bg6 {[%clk 0:02:34.3]} 14. Bf4
{[%clk 0:02:18.1]} 14... Rc8 {[%clk 0:02:31.8]} 15. Qa4 {[%clk 0:02:03.6]} 15...
Nd3 {[%clk 0:02:07.8]} 16. Bg3 {[%clk 0:01:37.3]} 16... Nc5 {[%clk 0:02:06.9]}
17. Qd1 {[%clk 0:01:32.9]} 17... d3 {[%clk 0:01:51.6]} 18. Nh4 {[%clk
0:01:15.4]} 18... a6 {[%clk 0:01:39.7]} 19. Nxg6 {[%clk 0:01:07.4]} 19... hxg6
{[%clk 0:01:38.9]} 20. Nc3 {[%clk 0:01:07.7]} 20... Be7 {[%clk 0:01:26.4]} 21.
Qf3 {[%clk 0:01:05.4]} 21... Nd4 {[%clk 0:01:19.5]} 22. Qf4 {[%clk 0:00:49.3]}
22... Ne2+ {[%clk 0:01:04]} 23. Nxe2 {[%clk 0:00:48.1]} 23... dxe2 {[%clk
0:01:04.4]} 24. Rfb1 {[%clk 0:00:37]} 24... Nd3 {[%clk 0:01:03.9]} 25. Qe4
{[%clk 0:00:33.8]} 25... e1=Q+ {[%clk 0:00:58.6]} 26. Rxe1 {[%clk 0:00:34]}
26... Nxe1 {[%clk 0:00:58.8]} 27. Rxe1 {[%clk 0:00:34.9]} 27... O-O {[%clk
0:00:46.3]} 28. Qxb7 {[%clk 0:00:34.7]} 28... Rxc4 {[%clk 0:00:43.1]} 29. Qxa6
{[%clk 0:00:34.6]} 29... Rc2 {[%clk 0:00:37.5]} 30. b3 {[%clk 0:00:25.2]} 30...
Bc5 {[%clk 0:00:32.8]} 31. Be4 {[%clk 0:00:19]} 31... Qd2 {[%clk 0:00:22.4]} 32.
Bxc2 {[%clk 0:00:12.2]} 32... Qxe1+ {[%clk 0:00:22.6]} 33. Qf1 {[%clk
0:00:12.7]} 33... Qc3 {[%clk 0:00:21.2]} 34. Qd3 {[%clk 0:00:08.5]} 34... Qa1+
{[%clk 0:00:19.4]} 35. Bb1 {[%clk 0:00:08.8]} 35... Qb2 {[%clk 0:00:13.1]} 36.
Qc2 {[%clk 0:00:08.2]} 36... Qd4 {[%clk 0:00:12.4]} 37. Kg2 {[%clk 0:00:08.7]}
37... Rd8 {[%clk 0:00:12]} 38. Qe4 {[%clk 0:00:09.2]} 38... Qc3 {[%clk
0:00:09.4]} 39. Be5 {[%clk 0:00:05.6]} 39... Qd2 {[%clk 0:00:07.7]} 40. Bg3
{[%clk 0:00:04.1]} 40... Kh7 {[%clk 0:00:06.7]} 41. h4 {[%clk 0:00:03.7]} 41...
Kg8 {[%clk 0:00:06]} 42. h5 {[%clk 0:00:04]} 42... Qd5 {[%clk 0:00:06.2]} 43.
hxg6 {[%clk 0:00:03.2]} 43... Qxe4+ {[%clk 0:00:05.7]} 44. Bxe4 {[%clk
0:00:04.1]} 44... fxg6 {[%clk 0:00:06.2]} 45. Bxg6 {[%clk 0:00:05]} 45... Rd2
{[%clk 0:00:06.4]} 46. a4 {[%clk 0:00:05.3]} 46... Rb2 {[%clk 0:00:06.4]} 47. a5
{[%clk 0:00:04.8]} 47... Rxb3 {[%clk 0:00:06.5]} 48. Be4 {[%clk 0:00:02.5]}
48... Ra3 {[%clk 0:00:06.8]} 49. Bc6 {[%clk 0:00:02.8]} 49... Rxa5 {[%clk
0:00:06.7]} 50. Bd7 {[%clk 0:00:03.7]} 50... Kf7 {[%clk 0:00:07]} 51. Bc6 {[%clk
0:00:03.8]} 51... Ke7 {[%clk 0:00:07.1]} 52. Be4 {[%clk 0:00:02.7]} 52... Ra2
{[%clk 0:00:06.8]} 53. Kf3 {[%clk 0:00:03.2]} 53... Ra3+ {[%clk 0:00:06.2]} 54.
Kg2 {[%clk 0:00:03.5]} 54... Bd6 {[%clk 0:00:06.5]} 55. Bh4+ {[%clk 0:00:03]}
55... Kd7 {[%clk 0:00:07]} 56. Bg5 {[%clk 0:00:03.1]} 56... Ra4 {[%clk
0:00:07.2]} 57. Bf3 {[%clk 0:00:03.4]} 57... Rb4 {[%clk 0:00:06.9]} 58. Be3
{[%clk 0:00:03.6]} 58... Rb3 {[%clk 0:00:07]} 59. Be4 {[%clk 0:00:03.4]} 59...
Ke7 {[%clk 0:00:06.6]} 60. Kf3 {[%clk 0:00:03.8]} 60... Bc5 {[%clk 0:00:05.7]}
61. Kf4 {[%clk 0:00:02.6]} 61... Bxe3+ {[%clk 0:00:05.5]} 62. fxe3 {[%clk
0:00:03.5]} 62... Rb4 {[%clk 0:00:05.6]} 63. Kf3 {[%clk 0:00:03.9]} 63... g5
{[%clk 0:00:05.2]} 64. Bd3 {[%clk 0:00:02.9]} 64... Kf6 {[%clk 0:00:05.7]} 65.
Be4 {[%clk 0:00:03.1]} 65... Ke5 {[%clk 0:00:05.9]} 66. Bg6 {[%clk 0:00:03.5]}
66... Rb3 {[%clk 0:00:05.8]} 67. Bc2 {[%clk 0:00:03.1]} 67... Rc3 {[%clk
0:00:05.7]} 68. Bg6 {[%clk 0:00:04]} 68... Kd5 {[%clk 0:00:05.5]} 69. Bf7 {[%clk
0:00:04.3]} 69... Ra3 {[%clk 0:00:05.2]} 70. Bg6 {[%clk 0:00:04.4]} 70... Kc5
{[%clk 0:00:04.1]} 71. Bf7 {[%clk 0:00:04.2]} 71... Kd6 {[%clk 0:00:04.4]} 72.
Bg6 {[%clk 0:00:04.3]} 72... Ke7 {[%clk 0:00:04.2]} 73. Be4 {[%clk 0:00:04.6]}
73... Kf6 {[%clk 0:00:04.1]} 74. Bc2 {[%clk 0:00:05.1]} 74... Ra7 {[%clk
0:00:04.6]} 75. Be4 {[%clk 0:00:05.5]} 75... Rc7 {[%clk 0:00:03.9]} 76. Bd3
{[%clk 0:00:05.4]} 76... Rc8 {[%clk 0:00:04.1]} 77. Be4 {[%clk 0:00:05.7]} 77...
Rh8 {[%clk 0:00:04.6]} 78. Kg3 {[%clk 0:00:04.9]} 78... Ke5 {[%clk 0:00:04.8]}
79. Bc6 {[%clk 0:00:05.2]} 79... Rf8 {[%clk 0:00:05.2]} 80. Bd7 {[%clk
0:00:04.7]} 80... Kd6 {[%clk 0:00:05.4]} 81. Bb5 {[%clk 0:00:04.4]} 81... Kc5
{[%clk 0:00:05.5]} 82. Bd7 {[%clk 0:00:04.8]} 82... Rf6 {[%clk 0:00:05.7]} 83.
Ba4 {[%clk 0:00:02.4]} 83... Kc4 {[%clk 0:00:05.6]} 84. Bc2 {[%clk 0:00:02.9]}
84... Kc3 {[%clk 0:00:05]} 85. Bh7 {[%clk 0:00:03.5]} 85... Kd2 {[%clk
0:00:05.3]} 86. e4 {[%clk 0:00:03.8]} 86... Rf4 {[%clk 0:00:04.3]} 87. Bg6
{[%clk 0:00:03.7]} 87... Ke3 {[%clk 0:00:04.5]} 88. Kg2 {[%clk 0:00:03.9]} 88...
e5 {[%clk 0:00:04.4]} 89. Bf5 {[%clk 0:00:03.8]} 89... Rxe4 {[%clk 0:00:04.2]}
90. Bxe4 {[%clk 0:00:04.2]} 90... Kxe4 {[%clk 0:00:04.5]} 91. Kg3 {[%clk
0:00:04.7]} 91... Ke3 {[%clk 0:00:04.7]} 92. Kg2 {[%clk 0:00:05]} 92... Kf4
{[%clk 0:00:05.1]} 0-1

[Event "*** Titled Tuesday Blitz"]
[Site "Chess.com"]
[Date "2021.02.02"]
[Round "10"]
[White "GadimbayliA"]
[Black "swisspower96"]
[Result "1/2-1/2"]
[WhiteElo "2886"]
[BlackElo "2687"]
[TimeControl "180+1"]
[EndTime "11:59:12 PST"]
[Termination "Game drawn by agreement"]

1. e4 {[%clk 0:02:59.2]} 1... e5 {[%clk 0:02:59.7]} 2. Nf3 {[%clk 0:02:58.7]}
2... Nf6 {[%clk 0:03:00]} 3. Nc3 {[%clk 0:02:57.7]} 3... Nc6 {[%clk 0:03:00]} 4.
d4 {[%clk 0:02:58.1]} 4... exd4 {[%clk 0:03:00]} 5. Nxd4 {[%clk 0:02:58.9]} 5...
Bb4 {[%clk 0:03:00.6]} 6. Nxc6 {[%clk 0:02:58.7]} 6... bxc6 {[%clk 0:03:01.2]}
7. Bd3 {[%clk 0:02:59.1]} 7... d5 {[%clk 0:02:59.4]} 8. exd5 {[%clk 0:03:00]}
8... O-O {[%clk 0:02:58.1]} 9. O-O {[%clk 0:03:00.3]} 9... cxd5 {[%clk
0:02:58.2]} 10. Bg5 {[%clk 0:02:59.9]} 10... c6 {[%clk 0:02:58.5]} 11. Qf3
{[%clk 0:02:59.4]} 11... Rb8 {[%clk 0:02:49.5]} 12. Rae1 {[%clk 0:02:56.6]}
12... h6 {[%clk 0:02:40.8]} 13. Bxf6 {[%clk 0:02:40.6]} 13... Qxf6 {[%clk
0:02:39.2]} 14. Qxf6 {[%clk 0:02:41]} 14... gxf6 {[%clk 0:02:40.1]} 15. Rb1
{[%clk 0:02:41.2]} 15... Bd6 {[%clk 0:02:30.8]} 16. Ne2 {[%clk 0:02:39.9]} 16...
Re8 {[%clk 0:02:30.6]} 17. Ng3 {[%clk 0:02:37.8]} 17... Be5 {[%clk 0:02:07]} 18.
b3 {[%clk 0:02:29.8]} 18... Bc3 {[%clk 0:01:58.3]} 19. Nf5 {[%clk 0:02:25.9]}
19... Bxf5 {[%clk 0:01:55.1]} 20. Bxf5 {[%clk 0:02:26.8]} 20... Re5 {[%clk
0:01:50.6]} 21. Bd3 {[%clk 0:02:26.3]} 21... c5 {[%clk 0:01:50.7]} 22. g3 {[%clk
0:02:22.1]} 22... a5 {[%clk 0:01:42.5]} 23. f4 {[%clk 0:02:15.8]} 23... Re7
{[%clk 0:01:38.9]} 24. Kg2 {[%clk 0:02:01.5]} 24... Kg7 {[%clk 0:01:34]} 25.
Rbd1 {[%clk 0:01:56.8]} 25... a4 {[%clk 0:01:20.4]} 26. Bf5 {[%clk 0:01:18.6]}
26... d4 {[%clk 0:01:09.4]} 27. Bd3 {[%clk 0:00:48.1]} 27... a3 {[%clk
0:00:58.3]} 28. Rf2 {[%clk 0:00:45.5]} 28... Rbe8 {[%clk 0:00:38.9]} 29. Bb5
{[%clk 0:00:45]} 29... Re1 {[%clk 0:00:33]} 30. Rxe1 {[%clk 0:00:42.2]} 30...
Rxe1 {[%clk 0:00:32.5]} 31. Rf1 {[%clk 0:00:41.5]} 31... Re3 {[%clk 0:00:32]}
32. Bd3 {[%clk 0:00:38.8]} 32... Be1 {[%clk 0:00:24.8]} 33. Rf3 {[%clk
0:00:30.7]} 33... Re7 {[%clk 0:00:22.4]} 34. Kh3 {[%clk 0:00:30.2]} 34... Bc3
{[%clk 0:00:14]} 35. Rf1 {[%clk 0:00:28.3]} 35... Re1 {[%clk 0:00:10.5]} 36.
Rxe1 {[%clk 0:00:27.1]} 36... Bxe1 {[%clk 0:00:11.4]} 37. Kg4 {[%clk 0:00:27]}
37... Bb4 {[%clk 0:00:11.5]} 38. Kf5 {[%clk 0:00:27.1]} 38... Bc3 {[%clk
0:00:12]} 39. Bc4 {[%clk 0:00:26.3]} 39... Bb4 {[%clk 0:00:12.1]} 40. Ke4 {[%clk
0:00:23.3]} 40... Kf8 {[%clk 0:00:11.4]} 41. Kd5 {[%clk 0:00:23.2]} 41... Ke7
{[%clk 0:00:11.6]} 42. f5 {[%clk 0:00:17.2]} 42... Kd7 {[%clk 0:00:10.1]} 43.
Bb5+ {[%clk 0:00:16.8]} 43... Ke7 {[%clk 0:00:08.4]} 44. Ke4 {[%clk 0:00:16.3]}
44... Kd6 {[%clk 0:00:08.5]} 45. Bc4 {[%clk 0:00:15.2]} 45... Ke7 {[%clk
0:00:08.8]} 46. Kd5 {[%clk 0:00:15.2]} 46... Kd7 {[%clk 0:00:09.3]} 47. Bb5+
{[%clk 0:00:15.5]} 47... Ke7 {[%clk 0:00:09.9]} 48. Kc6 {[%clk 0:00:15.8]} 48...
Ke8 {[%clk 0:00:06.7]} 49. Kd6+ {[%clk 0:00:12.9]} 49... Kd8 {[%clk 0:00:07.3]}
50. Bc4 {[%clk 0:00:13.6]} 50... Ke8 {[%clk 0:00:07.9]} 51. Kd5 {[%clk
0:00:08.5]} 51... Ke7 {[%clk 0:00:07.5]} 52. Kc6 {[%clk 0:00:08.3]} 52... Ke8
{[%clk 0:00:07.1]} 53. Bd3 {[%clk 0:00:07.1]} 53... Ke7 {[%clk 0:00:07.5]} 54.
g4 {[%clk 0:00:07.5]} 54... Ke8 {[%clk 0:00:07.5]} 55. Kd5 {[%clk 0:00:06.7]}
55... Ke7 {[%clk 0:00:08]} 56. Kc4 {[%clk 0:00:07]} 56... Kd6 {[%clk 0:00:08.2]}
57. Be4 {[%clk 0:00:06.6]} 57... Ke7 {[%clk 0:00:03.5]} 58. Kd3 {[%clk
0:00:06.4]} 58... Kd6 {[%clk 0:00:03.9]} 59. h3 {[%clk 0:00:06]} 59... Bc3
{[%clk 0:00:04]} 60. Bb7 {[%clk 0:00:05.1]} 60... Bb4 {[%clk 0:00:04.5]} 61. Ba6
{[%clk 0:00:05.5]} 61... Ke7 {[%clk 0:00:04.3]} 62. Bc4 {[%clk 0:00:06.1]} 62...
Ke8 {[%clk 0:00:04]} 63. Ke2 {[%clk 0:00:07]} 63... Ke7 {[%clk 0:00:04.7]} 64.
Kf3 {[%clk 0:00:07.9]} 64... Bc3 {[%clk 0:00:05]} 65. Kg3 {[%clk 0:00:08.8]}
65... Bd2 {[%clk 0:00:05.6]} 66. Kf3 {[%clk 0:00:08.4]} 66... Bg5 {[%clk
0:00:05.7]} 67. Kg3 {[%clk 0:00:07.4]} 67... Bd2 {[%clk 0:00:05.9]} 68. h4
{[%clk 0:00:07.7]} 68... Be1+ {[%clk 0:00:06]} 69. Kh3 {[%clk 0:00:08.1]} 69...
Bf2 {[%clk 0:00:06.5]} 70. Bd5 {[%clk 0:00:05.4]} 70... Be1 {[%clk 0:00:06.7]}
71. Bf3 {[%clk 0:00:05.7]} 71... Bf2 {[%clk 0:00:07.2]} 72. Be2 {[%clk
0:00:04.9]} 72... Be1 {[%clk 0:00:07.8]} 73. h5 {[%clk 0:00:05.4]} 73... Bb4
{[%clk 0:00:07.3]} 74. Kg2 {[%clk 0:00:05.6]} 74... Kf8 {[%clk 0:00:07.4]} 75.
Kf3 {[%clk 0:00:05.8]} 75... Ke7 {[%clk 0:00:08.3]} 76. Ke4 {[%clk 0:00:06.3]}
76... Kd6 {[%clk 0:00:08.9]} 77. Bc4 {[%clk 0:00:06.6]} 77... Bd2 {[%clk
0:00:09]} 78. Bxf7 {[%clk 0:00:06.2]} 78... Bc1 {[%clk 0:00:09.7]} 79. Bc4
{[%clk 0:00:06.4]} 79... Bd2 {[%clk 0:00:10]} 80. Kd3 {[%clk 0:00:06.7]} 80...
Bb4 {[%clk 0:00:10.3]} 81. Ke4 {[%clk 0:00:06.7]} 81... Bd2 {[%clk 0:00:10.2]}
82. Bd3 {[%clk 0:00:07.1]} 82... Bc1 {[%clk 0:00:10.4]} 83. b4 {[%clk
0:00:07.4]} 83... cxb4 {[%clk 0:00:09.5]} 84. Kxd4 {[%clk 0:00:08.3]} 84... Bb2+
{[%clk 0:00:10.2]} 85. Kc4 {[%clk 0:00:08.5]} 85... Bc3 {[%clk 0:00:10.1]} 86.
Kb5 {[%clk 0:00:08.4]} 86... Ke5 {[%clk 0:00:10.4]} 87. Bc4 {[%clk 0:00:07.9]}
87... Kf4 {[%clk 0:00:10.8]} 88. Bf7 {[%clk 0:00:07.6]} 88... Kxg4 {[%clk
0:00:10.1]} 89. Bg6 {[%clk 0:00:07.9]} 89... Kf3 {[%clk 0:00:10.5]} 90. Kc4
{[%clk 0:00:08.2]} 90... Ke2 {[%clk 0:00:11.1]} 91. Kb3 {[%clk 0:00:08.7]} 91...
Kd1 {[%clk 0:00:11.7]} 92. Bf7 {[%clk 0:00:09.2]} 92... Kc1 {[%clk 0:00:12.3]}
93. Bg6 {[%clk 0:00:10.1]} 93... Kd1 {[%clk 0:00:12.8]} 94. Bf7 {[%clk
0:00:10.9]} 94... Kd2 {[%clk 0:00:13.7]} 95. Bg6 {[%clk 0:00:11.7]} 95... Ke3
{[%clk 0:00:14.4]} 96. Bf7 {[%clk 0:00:12.1]} 96... Kf4 {[%clk 0:00:15.2]} 97.
Bg6 {[%clk 0:00:13]} 97... Kg5 {[%clk 0:00:16]} 98. Kc4 {[%clk 0:00:13.4]} 98...
Be1 {[%clk 0:00:16.1]} 99. Kb3 {[%clk 0:00:14.3]} 99... Bc3 {[%clk 0:00:16.7]}
100. Kc4 {[%clk 0:00:14.7]} 100... Be1 {[%clk 0:00:15.9]} 1/2-1/2